bitfinex/quotes_ETHUSD_20250223
["timestamp","ask_amount","ask_price","bid_price","bid_amount"]
[1740286591620,5.24,2767.2,2767.1,3.61389]
[1740286591843,0.7605,2767.4,2767.0,3.61394]
[1740286592840,0.7605,2767.4,2766.9,4.36618]
[1740286593428,0.7605,2767.4,2766.9,0.7521]
[1740286593940,0.03932149,2767.3,2766.7,3.61435]
[1740286594255,0.03932149,2767.3,2766.8,0.361435]
[1740286594454,0.03932149,2767.3,2766.8,3.975675]
[1740286596254,0.751,2767.2,2766.6,0.257]
[1740286596556,0.751,2767.2,2766.7,3.61434]
[1740286597527,0.03926754,2767.1,2766.7,3.61434]
[1740286598027,0.73739555,2766.9,2766.7,3.61434]
[1740286600461,0.751,2767.2,2766.7,7.22865]
[1740286600625,0.751,2767.2,2766.8,0.748565]
[1740286601027,0.03786324,2767.1,2766.8,0.748565]
[1740286602059,0.03786324,2767.1,2766.6,3.61454]
[1740286602249,0.03786324,2767.1,2766.8,3.61422]
[1740286602449,5.24,2767.4,2766.8,3.61422]
[1740286602758,8.85352,2767.4,2766.7,0.8112]
[1740286602957,5.24,2767.4,2766.7,4.42549]
[1740286603165,5.24,2767.4,2766.9,3.61402]
[1740286603344,5.24,2767.4,2766.8,4.056809]
[1740286603752,5.24,2767.4,2766.9,3.61409]
[1740286604663,6.0269,2767.5,2766.9,3.61409]
[1740286606464,0.71980401,2767.0,2766.8,4.056819]
[1740286606635,0.71980401,2767.0,2766.9,0.94779273]
[1740286609163,0.71980401,2767.0,2766.9,4.56194273]
[1740286609370,0.71980401,2767.0,2766.9,0.94779273]
[1740286609753,0.71980401,2767.0,2766.8,3.61417]
[1740286609961,0.71980401,2767.0,2766.9,3.61415]
[1740286611666,0.71980401,2767.0,2766.9,7.42165]
[1740286611877,5.24,2767.9,2767.3,3.61361]
[1740286612035,9.66217,2768.0,2767.2,3.61374]
[1740286612539,4.42228,2767.9,2767.1,3.61383]
[1740286612860,0.8094,2767.8,2767.1,3.6138]
[1740286613669,0.8094,2767.8,2767.1,7.22762]
[1740286613867,0.8094,2767.8,2767.1,3.6138]
[1740286614578,0.71238606,2767.3,2767.1,3.6138]
[1740286614755,0.71238606,2767.3,2767.2,0.36138]
[1740286615778,0.75171541,2767.3,2767.0,6.61392]
[1740286616269,0.75171541,2767.3,2767.0,3.0]
[1740286616463,0.75171541,2767.3,2767.0,6.61391]
[1740286616662,0.75171541,2767.3,2767.1,3.61386]
[1740286618674,0.75171541,2767.3,2766.9,1.5146756]
[1740286618875,4.36393,2767.2,2766.4,0.257]
[1740286619060,0.7501,2766.9,2766.4,0.469613]
[1740286619392,0.03927047,2766.8,2766.7,0.11307369]
[1740286620256,0.03927047,2766.8,2766.7,4.48838369]
[1740286620761,0.85862935,2767.3,2766.7,0.11307369]
[1740286620957,0.03918185,2766.8,2766.7,3.72748369]
[1740286621162,0.03918185,2766.8,2766.7,0.11307369]
[1740286621368,0.76090779,2766.8,2766.7,0.11307369]
[1740286621575,0.72172594,2766.8,2766.7,0.11307369]
[1740286621740,0.76090779,2766.8,2766.7,0.11307369]
[1740286627986,0.76090779,2766.8,2766.6,3.72760369]
[1740286628292,0.03918185,2766.8,2766.7,4.06326037]
[1740286628592,0.85862935,2767.3,2766.7,0.44885037]
[1740286628752,0.03928976,2767.2,2767.1,3.61382]
[1740286628958,0.03928976,2767.2,2767.1,4.37472]
[1740286629171,0.03932935,2767.3,2767.2,3.61376]
[1740286630695,0.03932935,2767.3,2767.2,11.11278034]
[1740286630994,0.03932935,2767.3,2767.2,12.61209436]
[1740286631567,9.35e-06,2767.3,2767.2,12.61209436]
[1740286631786,1.5394815,2768.4,2768.0,3.61271]
[1740286631989,0.03688887,2768.3,2768.0,3.61271]
[1740286632753,0.03688887,2768.3,2768.0,7.2253]
[1740286632954,0.03688887,2768.3,2767.8,0.7609]
[1740286633156,0.8193,2768.6,2768.1,3.61249]
[1740286633358,0.8193,2768.6,2768.2,3.61238]
[1740286633558,0.8193,2768.6,2768.2,3.61244]
[1740286634092,0.8193,2768.6,2768.1,3.61249]
[1740286634665,0.8193,2768.6,2768.2,3.61245]
[1740286635397,0.8193,2768.6,2768.4,3.61211]
[1740286635592,5.245,2768.9,2768.5,3.61206]
[1740286635801,0.86191777,2768.8,2768.5,3.61206]
[1740286636100,0.86191777,2768.8,2768.4,3.61217]
[1740286636391,0.03611777,2768.8,2768.7,3.6118]
[1740286636558,0.03611777,2768.8,2768.7,0.69798467]
[1740286638177,0.03611777,2768.8,2768.7,3.6118]
[1740286638869,0.005,2768.9,2768.8,3.61167]
[1740286639894,0.04114471,2768.9,2768.8,3.61167]
[1740286640192,0.005,2768.9,2768.8,3.61167]
[1740286640586,0.005,2768.9,2768.6,3.6118]
[1740286640901,0.005,2768.9,2768.7,4.69666166]
[1740286641098,0.03611777,2768.8,2768.7,5.48006166]
[1740286641274,0.03611777,2768.8,2768.7,8.84810831]
[1740286641475,0.005,2768.9,2768.8,3.61167]
[1740286643178,0.005,2768.9,2768.7,1.34298166]
[1740286643475,0.005,2768.9,2768.8,1.37128883]
[1740286643875,0.04096675,2768.9,2768.8,1.37128883]
[1740286644084,0.005,2768.9,2768.8,1.37128883]
[1740286644466,0.005,2768.9,2768.2,10.83908753]
[1740286644467,0.005,2768.9,2768.4,3.36804665]
[1740286644674,0.005,2768.9,2768.7,3.61174]
[1740286644880,0.005,2768.9,2768.5,3.61206]
[1740286645407,0.03600732,2768.8,2768.5,3.61206]
[1740286645701,0.005,2768.9,2768.5,7.22406]
[1740286645878,0.005,2768.9,2768.5,7.946466]
[1740286646078,0.03656103,2768.8,2768.5,7.946466]
[1740286646476,0.03656103,2768.8,2768.5,4.334396]
[1740286646700,0.005,2768.9,2768.5,4.334396]
[1740286647204,0.03656103,2768.8,2768.5,4.334396]
[1740286647703,0.85976103,2768.8,2768.2,10.85270418]
[1740286647998,0.85976103,2768.8,2768.3,3.61225]
[1740286648308,0.85976103,2768.8,2768.4,3.61213]
[1740286648537,0.8232,2768.8,2768.4,3.61213]
[1740286648806,0.8232,2768.8,2768.2,10.85270418]
[1740286649097,0.03653409,2768.7,2768.3,5.35883942]
[1740286649300,0.03653409,2768.7,2768.3,8.97108942]
[1740286649504,4.43489,2768.8,2768.3,1.74651942]
[1740286649705,0.03650714,2768.6,2768.2,14.46508418]
[1740286650000,0.03653409,2768.7,2768.2,10.85270418]
[1740286650200,0.8232,2768.8,2768.3,3.61225]
[1740286650402,0.03653409,2768.7,2768.2,10.23345918]
[1740286650590,0.8232,2768.4,2768.2,6.86541253]
[1740286650901,4.47185178,2768.3,2768.2,6.86541253]
[1740286652880,0.03633178,2768.3,2768.2,13.23345918]
[1740286653083,0.03633178,2768.3,2768.2,16.84590918]
[1740286653282,5.24,2768.7,2768.6,3.61193]
[1740286654611,5.24,2768.7,2768.5,3.61198]
[1740286655415,0.8232,2769.0,2768.5,3.61198]
[1740286656045,0.8232,2769.0,2768.7,3.61176]
[1740286657116,0.8232,2769.0,2768.7,7.22344]
[1740286657284,5.24,2769.2,2768.8,3.61167]
[1740286659811,0.03891981,2768.9,2768.8,3.61167]
[1740286660527,0.005,2768.9,2768.8,3.61167]
[1740286661224,0.03891981,2768.9,2768.8,3.61167]
[1740286661430,0.005,2768.9,2768.8,3.61167]
[1740286661725,0.005,2768.9,2768.8,5.19579901]
[1740286661933,0.005,2768.9,2768.8,1.58412901]
[1740286662230,0.005,2768.9,2768.8,0.71151961]
[1740286662725,4.99164,2768.9,2768.8,0.71151961]
[1740286662928,5.02570167,2768.9,2768.8,0.71151961]
[1740286667446,10.26570167,2768.9,2768.8,0.71151961]
[1740286671645,5.82906167,2768.9,2768.8,0.71151961]
[1740286671847,5.27906167,2768.9,2768.8,0.71151961]
[1740286673250,5.245,2768.9,2768.8,0.71151961]
[1740286673750,13.23164,2768.9,2768.8,0.71151961]
[1740286679059,1.3356,2768.8,2767.9,5.18992985]
[1740286679232,3.61221,2768.4,2768.0,1.29853165]
[1740286679849,7.2245,2768.4,2768.0,1.29853165]
[1740286680149,3.61221,2768.4,2768.0,1.29853165]
[1740286681254,0.55,2768.5,2768.0,1.29853165]
[1740286681460,4.16209,2768.5,2768.0,1.29853165]
[1740286681759,5.24,2768.7,2768.1,0.64884615]
[1740286682060,5.24,2768.7,2768.2,0.8293]
[1740286682250,9.63733,2768.8,2768.2,0.8293]
[1740286683226,6.0256,2768.8,2768.2,4.44172]
[1740286683430,9.63735,2768.8,2768.2,0.8293]
[1740286683658,3.61184,2768.7,2768.2,1.69961462]
[1740286683961,13.24913,2768.8,2768.6,0.71283891]
[1740286684643,3.6118,2768.7,2768.6,0.71283891]
[1740286685354,9.63729,2768.8,2768.6,0.71283891]
[1740286685663,3.6118,2768.7,2768.6,0.71283891]
[1740286690944,3.6118,2768.7,2768.2,0.8293]
[1740286691661,3.6118,2768.7,2768.2,1.34968662]
[1740286691868,3.6118,2768.7,2768.2,0.8293]
[1740286692933,6.0256,2768.8,2768.2,0.8293]
[1740286693137,9.63728,2768.8,2768.2,0.8293]
[1740286693966,6.0256,2768.8,2768.2,0.8293]
[1740286694560,9.63734,2768.8,2768.2,0.8293]
[1740286694761,9.63734,2768.8,2768.2,0.94232909]
[1740286697074,6.0256,2768.8,2768.2,0.94232909]
[1740286697264,3.61181,2768.7,2768.2,0.94232909]
[1740286697693,0.55,2768.7,2768.2,0.11302909]
[1740286697859,3.61215,2768.5,2768.2,0.11302909]
[1740286698058,3.61219,2768.4,2768.2,0.11302909]
[1740286698260,3.61207,2768.5,2768.2,0.11302909]
[1740286699070,3.61207,2768.5,2768.0,0.8241]
[1740286699282,8.85207,2768.5,2768.0,0.8241]
[1740286701123,8.85207,2768.5,2768.4,0.7215171]
[1740286701465,8.85207,2768.5,2768.0,0.8241]
[1740286702465,8.85207,2768.5,2767.9,5.18992985]
[1740286702466,4.16271,2768.0,2767.9,5.18992985]
[1740286702682,3.61297,2767.8,2767.3,0.7546]
[1740286702884,5.24,2767.8,2767.3,0.7546]
[1740286703985,8.85304,2767.8,2767.3,0.7546]
[1740286704567,5.24,2767.8,2767.3,0.7546]
[1740286706006,9.63275,2767.9,2767.3,0.7546]
[1740286706207,9.63275,2767.9,2767.3,1.191442]
[1740286706506,13.24567,2767.9,2767.3,1.191442]
[1740286706672,9.63275,2767.9,2767.3,1.191442]
[1740286709182,3.61297,2767.8,2767.3,1.191442]
[1740286709386,3.61297,2767.8,2767.3,0.7546]
[1740286711271,6.0199,2767.9,2767.3,0.7546]
[1740286711504,0.55,2768.0,2767.1,0.11306406]
[1740286711505,0.55,2767.4,2767.1,0.11306406]
[1740286711687,4.1636,2767.4,2767.1,0.11306406]
[1740286711881,0.55,2767.4,2767.1,0.11306406]
[1740286712098,3.61369,2767.3,2767.1,0.11306406]
[1740286712618,3.61369,2767.3,2766.9,0.7724]
[1740286714989,3.61379,2767.2,2766.9,0.7724]
[1740286715187,3.61379,2767.2,2766.5,3.36804665]
[1740286715188,5.79,2767.2,2766.7,0.7531]
[1740286715374,5.79,2767.2,2766.3,3.0]
[1740286715375,3.61411,2767.0,2766.4,0.7531]
[1740286717114,8.01657,2767.1,2766.4,0.7531]
[1740286717295,0.7887,2767.1,2766.4,4.36789]
[1740286719717,4.4026,2767.1,2766.4,4.36789]
[1740286721620,4.4026,2767.1,2766.4,0.7531]
[1740286721799,3.61414,2767.0,2766.4,0.7531]
[1740286722003,3.61414,2767.0,2766.4,1.52671567]
[1740286723286,7.22824,2767.0,2766.4,0.7531]
[1740286723591,3.61449,2766.7,2766.4,0.7531]
[1740286723787,3.61449,2766.7,2766.0,3.8244]
[1740286724743,4.41159,2766.7,2766.0,0.8244]
[1740286724942,3.6146,2766.6,2766.0,0.8244]
[1740286725089,8.8546,2766.6,2766.0,0.8244]
[1740286728644,5.24,2766.6,2766.0,0.8244]
[1740286729389,3.61469,2766.5,2766.0,0.8244]
[1740286730424,0.71097438,2766.1,2766.0,0.8244]
[1740286731823,5.24,2766.6,2766.5,0.8244]
[1740286732829,5.24,2766.6,2766.3,0.8244]
[1740286733121,5.24,2766.7,2766.3,0.8244]
[1740286733324,0.55,2766.6,2766.3,0.8244]
[1740286733690,1.27028376,2766.6,2766.3,0.8244]
[1740286734842,0.55,2766.5,2765.9,0.8244]
[1740286735455,0.55,2766.5,2766.0,3.61526]
[1740286735626,0.55,2766.5,2766.1,0.7659]
[1740286735959,0.55,2766.6,2766.1,0.7659]
[1740286736291,5.24,2767.9,2767.2,3.61373]
[1740286736561,5.24,2768.3,2767.3,4.13394665]
[1740286736728,5.24,2768.3,2767.3,0.7659]
[1740286736729,3.61292,2767.9,2767.3,0.7659]
[1740286736929,0.361292,2767.8,2767.3,0.7659]
[1740286737128,3.974292,2767.8,2767.3,0.7659]
[1740286737323,0.361292,2767.8,2767.3,0.7659]
[1740286737523,0.55,2767.7,2767.3,0.7659]
[1740286737965,4.16317,2767.7,2767.3,0.7659]
[1740286738529,0.73021328,2767.4,2767.3,0.7659]
[1740286739930,4.34372328,2767.4,2767.1,0.8069]
[1740286740159,0.55,2767.3,2767.1,0.8069]
[1740286740365,0.55,2767.3,2767.0,0.11306959]
[1740286740965,5.24,2767.3,2767.0,0.11306959]
[1740286741264,0.55,2767.1,2767.0,0.11306959]
[1740286741459,0.55,2767.1,2766.6,0.8069]
[1740286741662,0.55,2767.0,2766.6,0.8069]
[1740286742244,4.16403,2767.0,2766.6,0.8069]
[1740286742454,0.55,2767.0,2766.6,0.8069]
[1740286742860,0.55,2767.2,2766.6,0.8069]
[1740286744562,5.79,2767.2,2766.6,1.26036437]
[1740286744765,5.79,2767.2,2766.6,4.62841102]
[1740286744971,5.79,2767.2,2766.6,8.24293102]
[1740286745139,5.79,2767.2,2766.6,8.35602472]
[1740286745470,5.79,2767.2,2766.7,0.8069]
[1740286746145,5.79,2767.2,2766.8,3.61427]
[1740286746445,5.24,2767.2,2766.9,7.78896665]
[1740286746842,5.24,2767.2,2766.9,4.17494665]
[1740286747169,5.24,2767.2,2767.1,3.61389]
[1740286749433,5.24,2767.2,2766.9,7.78904665]
[1740286749667,5.24,2767.2,2767.0,0.77890467]
[1740286749872,5.24,2767.2,2766.9,0.8069]
[1740286750637,0.55,2767.3,2766.9,0.8069]
[1740286751940,0.55,2767.3,2766.7,0.91997959]
[1740286752166,0.55,2767.1,2766.7,0.91997959]
[1740286752367,4.16391,2767.1,2766.7,0.91997959]
[1740286752569,4.16391,2767.1,2766.5,0.8069]
[1740286752753,9.40391,2767.1,2766.5,0.8069]
[1740286754936,5.79,2767.1,2766.5,0.8069]
[1740286756182,5.79,2767.1,2766.5,0.91999441]
[1740286759081,0.55,2766.9,2766.5,0.91999441]
[1740286760294,0.55,2766.9,2766.5,0.8069]
[1740286760883,4.16418,2766.9,2766.5,0.8069]
[1740286761079,0.55,2766.9,2766.5,0.8069]
[1740286764681,0.55,2767.0,2766.5,0.8069]
[1740286765367,5.79,2767.0,2766.5,0.8069]
[1740286767406,5.24,2767.0,2766.5,0.8069]
[1740286767575,5.24,2767.0,2766.5,4.42156]
[1740286768105,5.24,2767.0,2766.5,8.03616]
[1740286768412,5.24,2767.0,2766.6,0.68559139]
[1740286768747,5.24,2767.0,2766.5,0.8069]
[1740286768871,0.55,2766.9,2766.5,0.8069]
[1740286769289,0.55,2766.9,2766.6,0.11309874]
[1740286770509,1.3411,2766.9,2766.6,0.11309874]
[1740286770705,4.95528,2766.9,2766.6,0.11309874]
[1740286771004,4.16441,2766.7,2766.6,0.11309874]
[1740286771688,3.61492,2766.4,2766.0,0.7734]
[1740286771878,8.85492,2766.4,2765.8,0.88649874]
[1740286772077,5.24,2766.4,2765.8,0.88649874]
[1740286775916,0.55,2766.3,2765.8,0.88649874]
[1740286776061,0.55,2766.3,2765.8,0.7734]
[1740286776282,0.55,2766.3,2765.8,4.38891]
[1740286777512,0.55,2766.3,2765.8,4.3889]
[1740286777832,0.55,2766.3,2765.9,3.61545]
[1740286779996,0.55,2766.3,2765.8,4.38898]
[1740286780197,0.55,2766.3,2765.8,5.52624867]
[1740286780810,0.55,2766.3,2765.9,3.61545]
[1740286781620,0.55,2766.3,2765.8,1.91066867]
[1740286782183,0.55,2766.3,2765.8,5.52618867]
[1740286787125,5.24,2766.4,2765.9,3.36804665]
[1740286787330,5.24,2766.4,2766.0,4.14319153]
[1740286788027,5.24,2766.4,2766.1,0.7746]
[1740286788233,5.24,2766.4,2766.3,3.61493]
[1740286789211,5.79,2766.9,2766.3,3.61493]
[1740286791652,5.24,2766.9,2766.4,0.7746]
[1740286791949,5.24,2767.2,2766.6,4.38914]
[1740286792247,5.24,2767.4,2766.8,3.36804665]
[1740286792446,5.24,2767.4,2767.3,0.7746]
[1740286792649,0.55,2767.6,2767.3,0.7746]
[1740286792945,5.24,2767.7,2767.3,0.7746]
[1740286793519,0.55,2767.6,2767.3,0.7746]
[1740286797256,0.55,2767.6,2767.3,4.38821]
[1740286797430,0.55,2767.6,2767.3,0.7746]
[1740286798220,0.55,2767.6,2766.9,0.8186]
[1740286798427,0.7874,2767.5,2766.9,1.23726467]
[1740286798621,4.40085,2767.5,2766.9,0.8186]
[1740286799439,5.24,2767.7,2767.0,0.8186]
[1740286799646,6.0274,2767.7,2767.0,4.43255]
[1740286800568,0.55,2767.4,2766.7,0.8131]
[1740286800774,0.55,2767.1,2766.4,4.42777]
[1740286800965,0.55,2767.1,2766.7,3.61429]
[1740286801140,0.55,2767.1,2766.8,0.8131]
[1740286801340,5.24,2767.3,2766.9,3.61406]
[1740286801574,5.24,2767.3,2766.9,3.61408]
[1740286802772,0.55,2767.2,2766.9,3.61408]
[1740286803157,0.55,2767.2,2766.9,3.61407]
[1740286803685,0.55,2767.2,2766.8,4.42735]
[1740286803971,0.55,2767.2,2766.9,3.61415]
[1740286804155,0.55,2767.2,2766.8,0.8131]
[1740286804574,0.55,2767.2,2766.8,4.4273]
[1740286807177,0.55,2767.2,2766.9,3.61415]
[1740286808584,0.55,2767.2,2766.8,4.42737]
[1740286808889,0.55,2767.2,2766.8,4.42738]
[1740286812789,0.55,2767.2,2766.8,8.04157]
[1740286813091,0.55,2767.2,2766.8,8.04149]
[1740286813290,0.55,2767.2,2766.8,4.42729]
[1740286816383,0.55,2767.2,2766.9,3.61412]
[1740286820694,0.55,2767.2,2767.0,3.61401]
[1740286820996,0.55,2767.2,2766.9,3.61412]
[1740286821919,0.55,2767.2,2767.0,0.11307834]
[1740286823221,0.55,2767.2,2767.1,0.11307834]
[1740286824213,0.55,2767.2,2767.0,0.11307834]
[1740286825895,0.55,2767.2,2767.1,0.11307834]
[1740286828907,0.55,2767.2,2766.7,5.24630968]
[1740286829838,0.55,2767.2,2766.8,0.11308174]
[1740286831449,0.55,2767.2,2766.9,0.11308174]
[1740286831607,0.55,2767.0,2766.9,0.11308174]
[1740286837931,1.27386989,2767.0,2766.9,0.85113664]
[1740286838133,0.55,2767.0,2766.9,0.11308174]
[1740286840172,10.656416,2767.0,2766.9,0.11308174]
[1740286840353,10.15822,2767.0,2766.9,0.11308174]
[1740286840647,1.3042,2766.5,2766.0,1.63191968]
[1740286843564,4.91889,2766.5,2765.9,0.7554]
[1740286843769,4.91889,2766.5,2765.8,1.63191968]
[1740286843770,1.3042,2766.5,2765.8,1.63191968]
[1740286843935,0.55,2766.4,2765.8,1.63191968]
[1740286845173,0.55,2766.4,2766.0,1.63191968]
[1740286845539,5.79,2766.4,2766.0,1.63191968]
[1740286846445,0.55,2766.0,2765.3,5.24804968]
[1740286846635,5.79,2766.0,2765.3,1.63191968]
[1740286846836,0.55,2765.8,2765.3,1.63191968]
[1740286847042,5.9942,2765.7,2764.9,2.38731968]
[1740286847264,0.55,2765.5,2764.9,2.38731968]
[1740286847462,0.55,2765.5,2764.9,6.00407968]
[1740286847664,0.55,2765.5,2764.9,2.38731968]
[1740286848787,0.55,2765.5,2764.9,0.7554]
[1740286849074,0.55,2765.3,2764.9,0.7554]
[1740286849456,0.55,2765.3,2764.7,3.7554]
[1740286849838,1.042032,2765.3,2764.7,0.7554]
[1740286851359,0.55,2765.3,2764.7,0.7554]
[1740286851936,5.24,2765.7,2765.3,3.61621]
[1740286852082,5.24,2765.7,2765.6,3.61585]
[1740286852430,0.7542,2766.0,2765.6,3.61585]
[1740286853509,0.7542,2766.5,2765.9,3.37061322]
[1740286853710,0.7542,2766.5,2765.8,3.61549]
[1740286853914,0.7542,2766.5,2765.8,8.00514032]
[1740286854516,0.55,2766.4,2765.9,3.61542]
[1740286854811,0.7542,2766.5,2765.8,4.38964032]
[1740286855720,0.55,2766.4,2765.8,4.38964032]
[1740286855937,0.55,2766.4,2765.9,3.61545]
[1740286856100,0.55,2766.4,2765.9,4.49149903]
[1740286857228,0.55,2766.4,2765.9,0.87604903]
[1740286857732,0.55,2766.4,2765.9,4.49147903]
[1740286858798,0.55,2766.4,2766.0,3.61526]
[1740286859343,0.55,2766.4,2765.9,4.49147903]
[1740286859511,0.55,2766.4,2765.9,7.23079]
[1740286859713,0.55,2766.4,2765.7,4.37103]
[1740286860035,0.55,2766.4,2765.7,4.37102]
[1740286860198,0.55,2766.4,2765.7,7.98665]
[1740286860395,0.55,2766.4,2765.7,4.37102]
[1740286860632,0.55,2766.4,2765.7,5.14518332]
[1740286861630,0.55,2766.4,2765.7,4.38978332]
[1740286861935,0.7565,2766.3,2765.7,8.00543332]
[1740286863097,0.7565,2766.3,2765.7,4.38978332]
[1740286863302,0.7565,2766.3,2765.8,3.61558]
[1740286864337,0.7565,2766.3,2765.8,4.02255101]
[1740286865242,0.7565,2766.3,2765.9,4.43386]
[1740286866335,0.7565,2766.3,2765.9,0.8185]
[1740286870241,0.7565,2766.3,2765.9,4.43392]
[1740286870743,0.7565,2766.3,2765.8,0.40697101]
[1740286870944,0.7565,2766.3,2765.7,0.8185]
[1740286871358,0.55,2766.2,2765.7,0.8185]
[1740286871509,0.55,2766.2,2765.6,6.98635322]
[1740286871710,0.55,2766.2,2765.6,3.61574]
[1740286871927,3.61526,2766.1,2765.3,0.8185]
[1740286872214,1.3065,2766.0,2765.3,1.0775]
[1740286872413,1.3065,2766.0,2765.3,4.0775]
[1740286872645,1.3065,2766.0,2765.3,7.69372]
[1740286873139,4.92183,2766.0,2765.3,3.0]
[1740286873345,1.3065,2766.0,2765.4,3.61601]
[1740286873907,1.3065,2766.0,2765.2,0.27241523]
[1740286873908,1.3065,2765.8,2765.2,0.27241523]
[1740286874238,0.55,2765.6,2765.0,6.98724322]
[1740286874438,0.55,2765.6,2765.0,3.37061322]
[1740286874621,0.55,2765.4,2764.8,4.43539]
[1740286874823,0.55,2765.4,2764.8,4.42339032]
[1740286875858,5.79,2765.4,2764.8,0.80650032]
[1740286877557,5.79,2765.4,2764.7,7.51447938]
[1740286877558,0.7586,2765.1,2764.7,0.259]
[1740286877952,0.7586,2765.1,2764.5,6.61717]
[1740286878650,0.7586,2765.1,2764.5,6.8907594]
[1740286879832,0.7586,2765.1,2764.5,10.5079794]
[1740286880035,0.7586,2765.1,2764.5,6.8907594]
[1740286880226,0.7586,2765.1,2764.5,3.73327654]
[1740286880430,5.24,2765.4,2765.3,3.61624]
[1740286880658,0.1,2766.9,2765.3,3.61624]
[1740286880659,0.8277,2766.1,2765.3,6.98685322]
[1740286880866,0.8277,2766.4,2765.7,3.6156]
[1740286881361,0.55,2766.3,2765.6,3.61576]
[1740286881665,0.8277,2766.4,2765.7,3.61567]
[1740286882042,0.55,2766.3,2765.7,3.61567]
[1740286882242,0.8277,2766.4,2765.7,3.61567]
[1740286882959,0.55,2766.3,2765.5,3.61596]
[1740286883389,0.55,2766.3,2765.7,3.61562]
[1740286884232,0.8277,2766.4,2766.3,3.61493]
[1740286884532,0.8277,2766.4,2766.1,3.61511]
[1740286885286,0.8277,2766.4,2765.9,3.37061322]
[1740286885454,0.8277,2766.9,2766.2,3.61497]
[1740286885758,0.55,2766.8,2766.2,3.61497]
[1740286886968,4.16429,2766.8,2766.0,7.23048]
[1740286887573,4.16429,2766.8,2766.1,3.61518]
[1740286890179,9.40429,2766.8,2766.1,3.61518]
[1740286890686,5.79,2766.8,2766.1,3.61518]
[1740286890885,5.79,2766.8,2766.1,3.61507]
[1740286895859,0.55,2766.6,2766.1,3.61507]
[1740286900702,0.55,2766.6,2765.9,10.60142322]
[1740286901006,0.55,2766.6,2766.0,3.61532]
[1740286901409,0.55,2766.6,2765.9,6.98597322]
[1740286901608,0.55,2766.6,2765.9,11.37995054]
[1740286903177,0.55,2766.6,2766.0,3.61532]
[1740286905409,0.807,2766.3,2765.5,0.8012]
[1740286905615,0.55,2766.0,2765.3,4.67634]
[1740286905782,0.55,2766.0,2765.5,3.61597]
[1740286906502,0.55,2766.0,2765.4,0.467634]
[1740286906980,4.16542,2766.0,2765.4,0.467634]
[1740286907184,0.55,2766.0,2765.4,0.467634]
[1740286907393,0.55,2766.0,2764.9,7.78848322]
[1740286907394,0.807,2765.7,2764.9,7.78848322]
[1740286907715,0.807,2765.7,2765.3,3.61623]
[1740286910617,0.55,2765.8,2765.4,0.7948]
[1740286910786,0.55,2765.8,2765.2,4.41117]
[1740286911518,0.7768,2765.7,2765.2,3.61637]
[1740286911717,6.0168,2765.9,2765.5,3.37061322]
[1740286912017,0.7768,2765.9,2765.5,10.60240322]
[1740286912310,0.7768,2765.9,2765.6,3.61584]
[1740286914019,0.7768,2766.1,2765.6,3.61584]
[1740286914230,0.7768,2766.1,2765.6,4.31440532]
[1740286915421,0.7768,2766.1,2765.7,3.61563]
[1740286915592,0.7768,2766.1,2765.6,4.31440532]
[1740286920522,0.7768,2766.1,2765.7,3.61562]
[1740286922719,0.7954,2766.9,2766.2,3.61502]
[1740286922952,0.55,2766.8,2766.1,3.61518]
[1740286923246,0.7954,2766.8,2766.1,3.61518]
[1740286923454,0.55,2766.7,2766.1,3.61518]
[1740286923650,0.55,2766.5,2765.8,8.01650322]
[1740286924241,0.55,2766.5,2765.9,3.61534]
[1740286924449,0.55,2766.5,2766.0,3.61529]
[1740286926418,0.55,2766.5,2766.1,3.61513]
[1740286928238,0.55,2766.5,2765.9,7.23071]
[1740286928428,0.55,2766.5,2766.0,0.97787196]
[1740286928849,0.55,2766.5,2766.0,4.59312196]
[1740286931824,0.55,2766.5,2766.0,0.97787196]
[1740286932024,0.55,2766.5,2765.9,3.88057094]
[1740286932247,0.55,2766.5,2765.9,7.49595094]
[1740286933259,0.55,2766.5,2765.9,3.88051094]
[1740286933462,0.55,2766.5,2765.9,7.49590094]
[1740286935258,0.55,2766.5,2765.9,7.49589094]
[1740286935463,0.7708,2766.5,2765.9,3.88051094]
[1740286936328,0.7708,2766.5,2766.0,3.61532]
[1740286937155,0.7708,2766.5,2765.9,0.26513094]
[1740286937361,0.7708,2766.5,2765.9,3.88058094]
[1740286939962,0.8,2766.3,2765.3,0.7625]
[1740286940160,0.8,2765.8,2765.3,3.87423]
[1740286940734,0.8,2765.8,2765.4,1.63364269]
[1740286942335,0.8,2765.8,2765.6,1.63364269]
[1740286942876,0.8,2765.8,2765.4,3.61604]
[1740286943165,0.8,2765.8,2765.5,1.08591999]
[1740286945056,0.8,2765.8,2765.6,3.61584]
[1740286945263,0.8,2766.1,2765.6,4.13142994]
[1740286945564,0.8,2766.1,2765.7,3.61562]
[1740286946133,0.8,2766.1,2765.6,4.13142994]
[1740286946355,0.8,2765.9,2765.7,0.70673398]
[1740286946864,1.35,2765.8,2765.7,0.70673398]
[1740286948533,0.8,2765.5,2764.7,6.98593994]
[1740286948733,0.8,2765.5,2764.8,3.61686]
[1740286949095,0.8,2765.3,2764.7,6.98593994]
[1740286949255,0.8,2765.3,2764.8,0.69859399]
[1740286949449,0.8,2765.3,2764.8,4.31537399]
[1740286950169,0.8,2765.3,2764.9,3.61676]
[1740286952370,0.8,2765.3,2764.9,3.61668]
[1740286952870,0.8,2765.3,2764.8,4.58563492]